fUSD/lending_fUSD_20250105
["ID","MTS","AMOUNT","RATE_DAILY","PERIOD"]
[347735320,1736087443961,-500.0,8.219e-05,2]
[347735321,1736087443971,-2874.65,8.219e-05,2]
[347735322,1736087443980,-877.13,8.219e-05,2]
[347735323,1736087443991,-800.29,8.219e-05,2]
[347735324,1736087444000,-1180.17,8.219e-05,2]
[347735325,1736087444010,-577.28,8.219e-05,2]
[347735326,1736087444020,-500.0,8.219e-05,2]
[347735327,1736087444029,-1073.55,8.219e-05,2]
[347735328,1736087444039,-4347.54,8.219e-05,2]
[347735329,1736087444049,-1014.49,8.219e-05,2]
[347735330,1736087444058,-1436.65,8.219e-05,2]
[347735331,1736087444068,-1330.12,8.219e-05,2]
[347735332,1736087444078,-600.32,8.219e-05,2]
[347735333,1736087444088,-1657.93,8.219e-05,2]
[347735334,1736087444098,-599.67,8.219e-05,2]
[347735335,1736087444107,-1031.98,8.219e-05,2]
[347735336,1736087444117,-500.0,8.219e-05,2]
[347735337,1736087444127,-686.4,8.219e-05,2]
[347735338,1736087444136,-1746.76,8.219e-05,2]
[347735339,1736087444146,-2025.86,8.219e-05,2]
[347735340,1736087444156,-771.32,8.219e-05,2]
[347735341,1736087444165,-1216.52,8.219e-05,2]
[347735342,1736087444174,-500.0,8.219e-05,2]
[347735343,1736087444184,-2423.16,8.219e-05,2]
[347735344,1736087444194,-1113.78,8.219e-05,2]
[347735345,1736087444204,-164.87,8.219e-05,2]
[347735346,1736087444214,-250.0,8.219e-05,2]
[347735347,1736087444223,-1000.0,8.219e-05,2]
[347735348,1736087444232,-164.62,8.331e-05,2]
[347735349,1736087444242,-23900.0,8.359e-05,2]
[347735350,1736087444252,-500.0,8.492e-05,2]
[347735351,1736087444261,-500.0,8.492e-05,2]
[347735352,1736087444271,-539.14,8.492e-05,2]
[347735353,1736087444281,-500.0,8.492e-05,2]
[347735354,1736087444291,-554.11,8.492e-05,2]
[347735355,1736087444300,-500.0,8.492e-05,2]
[347735356,1736087444310,-633.48,8.492e-05,2]
[347735357,1736087444319,-500.0,8.492e-05,2]
[347735358,1736087444329,-500.0,8.492e-05,2]
[347735359,1736087444341,-500.0,8.492e-05,2]
[347735360,1736087444350,-549.43,8.492e-05,2]
[347735361,1736087444360,-500.0,8.492e-05,2]
[347735362,1736087444370,-500.0,8.492e-05,2]
[347735363,1736087444379,-656.44,8.492e-05,2]
[347735364,1736087444389,-500.0,8.492e-05,2]
[347735365,1736087444398,-500.0,8.492e-05,2]
[347735366,1736087444408,-500.0,8.492e-05,2]
[347735367,1736087444418,-500.0,8.492e-05,2]
[347735368,1736087444427,-500.0,8.492e-05,2]
[347735369,1736087444437,-509.84,8.492e-05,2]
[347735370,1736087444446,-500.0,8.492e-05,2]
[347735371,1736087444456,-500.0,8.492e-05,2]
[347735372,1736087444465,-500.0,8.492e-05,2]
[347735373,1736087444474,-500.0,8.492e-05,2]
[347735374,1736087444484,-500.0,8.492e-05,2]
[347735375,1736087444493,-500.0,8.492e-05,2]
[347735376,1736087444503,-641.45,8.492e-05,2]
[347735377,1736087444512,-500.0,8.492e-05,2]
[347735378,1736087444521,-542.73705245,8.492e-05,2]
[347735379,1736087444531,-500.0,8.492e-05,2]
[347735380,1736087444540,-500.0,8.492e-05,2]
[347735381,1736087444550,-500.0,8.492e-05,2]
[347735382,1736087444559,-519.93,8.492e-05,2]
[347735383,1736087444568,-500.0,8.492e-05,2]
[347735384,1736087444578,-500.0,8.492e-05,2]
[347735385,1736087444589,-500.0,8.492e-05,2]
[347735386,1736087444598,-500.0,8.492e-05,2]
[347735387,1736087444608,-500.0,8.492e-05,2]
[347735388,1736087444617,-500.0,8.492e-05,2]
[347735389,1736087444627,-546.86381563,8.492e-05,2]
[347735390,1736087444637,-500.0,8.492e-05,2]
[347735391,1736087444646,-500.0,8.492e-05,2]
[347735392,1736087444656,-947.94,8.492e-05,2]
[347735393,1736087444666,-500.0,8.492e-05,2]
[347735394,1736087444676,-771.06,8.492e-05,2]
[347735395,1736087444686,-500.0,8.492e-05,2]
[347735396,1736087444696,-500.0,8.492e-05,2]
[347735397,1736087444706,-500.0,8.492e-05,2]
[347735398,1736087444716,-500.0,8.492e-05,2]
[347735399,1736087444726,-500.0,8.492e-05,2]
[347735400,1736087444736,-500.0,8.492e-05,2]
[347735401,1736087444746,-500.0,8.492e-05,2]
[347735402,1736087444756,-410.46632959,8.492e-05,2]
[347735403,1736087444766,-758.28,8.492e-05,2]
[347735404,1736087444776,-500.0,8.492e-05,2]
[347735405,1736087444786,-500.0,8.492e-05,2]
[347735406,1736087444796,-500.0,8.492e-05,2]
[347735407,1736087444806,-500.0,8.492e-05,2]
[347735408,1736087444816,-522.41,8.492e-05,2]
[347735409,1736087444826,-500.0,8.492e-05,2]
[347735410,1736087444836,-500.0,8.492e-05,2]
[347735411,1736087444845,-500.0,8.492e-05,2]
[347735412,1736087444854,-500.0,8.492e-05,2]
[347735413,1736087444864,-489.58989386,8.492e-05,2]
[347735414,1736087444874,-500.0,8.492e-05,2]
[347735415,1736087444884,-500.0,8.492e-05,2]
[347735416,1736087444894,-695.0,8.492e-05,2]
[347735417,1736087444904,-500.0,8.492e-05,2]
[347735418,1736087444913,-500.0,8.492e-05,2]
[347735419,1736087444923,-500.0,8.492e-05,2]
[347735420,1736087444931,-548.02900469,8.492e-05,2]
[347735421,1736087444945,-500.0,8.492e-05,2]
[347735422,1736087444955,-500.0,8.492e-05,2]
[347735423,1736087444965,-500.0,8.492e-05,2]
[347735424,1736087444976,-500.0,8.492e-05,2]
[347735425,1736087444986,-500.0,8.492e-05,2]
[347735426,1736087444996,-500.0,8.492e-05,2]
[347735427,1736087445006,-500.0,8.492e-05,2]
[347735428,1736087445016,-500.0,8.492e-05,2]
[347735429,1736087445025,-500.0,8.492e-05,2]
[347735430,1736087445036,-500.0,8.492e-05,2]
[347735431,1736087445046,-500.0,8.492e-05,2]
[347735432,1736087445056,-500.0,8.492e-05,2]
[347735433,1736087445067,-644.71,8.492e-05,2]
[347735434,1736087445077,-500.0,8.492e-05,2]
[347735435,1736087445088,-500.0,8.492e-05,2]
[347735436,1736087445098,-500.0,8.492e-05,2]
[347735437,1736087445108,-500.0,8.492e-05,2]
[347735438,1736087445117,-500.0,8.492e-05,2]
[347735439,1736087445128,-500.0,8.492e-05,2]
[347735440,1736087445138,-500.0,8.492e-05,2]
[347735441,1736087445148,-500.0,8.492e-05,2]
[347735442,1736087445158,-500.0,8.492e-05,2]
[347735443,1736087445169,-500.0,8.492e-05,2]
[347735444,1736087445179,-500.0,8.492e-05,2]
[347735445,1736087445189,-500.0,8.492e-05,2]
[347735446,1736087445199,-500.0,8.492e-05,2]
[347735447,1736087445208,-500.0,8.492e-05,2]
[347735448,1736087445218,-500.0,8.492e-05,2]
[347735449,1736087445227,-500.0,8.492e-05,2]
[347735450,1736087445237,-500.0,8.492e-05,2]
[347735451,1736087445247,-500.0,8.492e-05,2]
[347735452,1736087445256,-635.97,8.492e-05,2]
[347735453,1736087445266,-500.0,8.492e-05,2]
[347735454,1736087445275,-500.0,8.492e-05,2]
[347735455,1736087445285,-500.0,8.492e-05,2]
[347735456,1736087445294,-500.0,8.492e-05,2]
[347735457,1736087445304,-500.0,8.492e-05,2]
[347735458,1736087445314,-500.0,8.492e-05,2]
[347735459,1736087445323,-500.0,8.492e-05,2]
[347735460,1736087445333,-500.0,8.492e-05,2]
[347735461,1736087445344,-500.0,8.492e-05,2]
[347735463,1736087445354,-500.0,8.492e-05,2]
[347735465,1736087445365,-500.0,8.492e-05,2]
[347735468,1736087445375,-779.91,8.492e-05,2]
[347735470,1736087445385,-558.76,8.492e-05,2]
[347735471,1736087445395,-500.0,8.492e-05,2]
[347735472,1736087445404,-569.87751083,8.492e-05,2]
[347735473,1736087445414,-500.0,8.492e-05,2]
[347735474,1736087445424,-645.46,8.492e-05,2]
[347735475,1736087445433,-500.0,8.492e-05,2]
[347735476,1736087445443,-500.0,8.492e-05,2]
[347735478,1736087445452,-500.0,8.492e-05,2]
[347735479,1736087445461,-857.29,8.492e-05,2]
[347735481,1736087445471,-500.0,8.492e-05,2]
[347735482,1736087445479,-500.0,8.492e-05,2]
[347735483,1736087445489,-500.0,8.492e-05,2]
[347735484,1736087445498,-500.0,8.492e-05,2]
[347735485,1736087445508,-500.0,8.492e-05,2]
[347735486,1736087445517,-500.0,8.492e-05,2]
[347735487,1736087445526,-500.0,8.492e-05,2]
[347735488,1736087445536,-356.44700628,8.492e-05,2]
[347735489,1736087445545,-500.0,8.492e-05,2]
[347735490,1736087445555,-500.0,8.492e-05,2]
[347735491,1736087445565,-500.0,8.492e-05,2]
[347735492,1736087445575,-500.0,8.492e-05,2]
[347735493,1736087445585,-500.0,8.492e-05,2]
[347735494,1736087445596,-500.0,8.492e-05,2]
[347735495,1736087445605,-500.0,8.492e-05,2]
[347735496,1736087445615,-500.0,8.492e-05,2]
[347735497,1736087445624,-500.0,8.492e-05,2]
[347735498,1736087445634,-560.06,8.492e-05,2]
[347735499,1736087445644,-500.0,8.492e-05,2]
[347735500,1736087445653,-500.0,8.492e-05,2]
[347735501,1736087445663,-500.0,8.492e-05,2]
[347735502,1736087445672,-500.0,8.492e-05,2]
[347735503,1736087445682,-813.35,8.492e-05,2]
[347735504,1736087445692,-500.0,8.492e-05,2]
[347735505,1736087445702,-500.0,8.492e-05,2]
[347735506,1736087445711,-500.0,8.492e-05,2]
[347735507,1736087445720,-500.0,8.492e-05,2]
[347735508,1736087445730,-500.0,8.492e-05,2]
[347735509,1736087445739,-500.0,8.492e-05,2]
[347735510,1736087445749,-709.28,8.492e-05,2]
[347735511,1736087445758,-500.0,8.492e-05,2]
[347735512,1736087445768,-933.58,8.492e-05,2]
[347735513,1736087445777,-500.0,8.492e-05,2]
[347735514,1736087445787,-500.0,8.492e-05,2]
[347735515,1736087445797,-500.0,8.492e-05,2]
[347735516,1736087445806,-500.0,8.492e-05,2]
[347735517,1736087445816,-573.08,8.492e-05,2]
[347735518,1736087445825,-910.71,8.492e-05,2]
[347735519,1736087445835,-500.0,8.492e-05,2]
[347735520,1736087445843,-500.0,8.492e-05,2]
[347735521,1736087445853,-500.0,8.492e-05,2]
[347735522,1736087445863,-500.0,8.492e-05,2]
[347735523,1736087445874,-500.0,8.492e-05,2]
[347735524,1736087445885,-579.63,8.492e-05,2]
[347735525,1736087445895,-500.0,8.492e-05,2]
[347735526,1736087445904,-500.0,8.492e-05,2]
[347735527,1736087445914,-500.0,8.492e-05,2]
[347735528,1736087445923,-500.0,8.492e-05,2]
[347735529,1736087445933,-500.0,8.492e-05,2]
[347735530,1736087445947,-500.0,8.492e-05,2]
[347735531,1736087445957,-500.0,8.492e-05,2]
[347735532,1736087445966,-500.0,8.492e-05,2]
[347735533,1736087445976,-500.0,8.492e-05,2]
[347735534,1736087445986,-545.6,8.492e-05,2]
[347735535,1736087445996,-500.0,8.492e-05,2]
[347735536,1736087446006,-500.0,8.492e-05,2]
[347735537,1736087446015,-500.0,8.492e-05,2]
[347735538,1736087446024,-500.0,8.492e-05,2]
[347735539,1736087446034,-736.49,8.492e-05,2]
[347735540,1736087446043,-500.0,8.492e-05,2]
[347735541,1736087446052,-500.0,8.492e-05,2]
[347735542,1736087446062,-500.0,8.492e-05,2]
[347735543,1736087446074,-500.0,8.492e-05,2]
[347735544,1736087446084,-500.0,8.492e-05,2]
[347735545,1736087446094,-500.0,8.492e-05,2]
[347735546,1736087446104,-500.0,8.492e-05,2]
[347735547,1736087446113,-500.0,8.492e-05,2]
[347735548,1736087446122,-608.15,8.492e-05,2]
[347735549,1736087446132,-500.0,8.492e-05,2]
[347735550,1736087446141,-500.0,8.492e-05,2]
[347735551,1736087446151,-500.0,8.492e-05,2]
[347735552,1736087446160,-500.0,8.492e-05,2]
[347735553,1736087446170,-500.0,8.492e-05,2]
[347735554,1736087446180,-500.0,8.492e-05,2]
[347735555,1736087446190,-500.0,8.492e-05,2]
[347735556,1736087446200,-500.0,8.492e-05,2]
[347735557,1736087446210,-500.0,8.492e-05,2]
[347735558,1736087446219,-500.0,8.492e-05,2]
[347735559,1736087446229,-500.0,8.492e-05,2]
[347735560,1736087446238,-500.0,8.492e-05,2]
[347735561,1736087446247,-500.0,8.492e-05,2]
[347735562,1736087446257,-500.0,8.492e-05,2]
[347735563,1736087446266,-500.0,8.492e-05,2]
[347735564,1736087446275,-500.0,8.492e-05,2]
[347735565,1736087446285,-500.0,8.492e-05,2]
[347735566,1736087446294,-658.6,8.492e-05,2]
[347735567,1736087446304,-500.0,8.492e-05,2]
[347735568,1736087446313,-500.0,8.492e-05,2]
[347735569,1736087446322,-500.0,8.492e-05,2]
[347735570,1736087446331,-500.0,8.492e-05,2]
[347735571,1736087446342,-500.0,8.492e-05,2]
[347735572,1736087446351,-500.0,8.492e-05,2]
[347735573,1736087446361,-174.9998509,8.492e-05,2]
[347735574,1736087446370,-500.0,8.492e-05,2]
[347735576,1736087446379,-500.0,8.492e-05,2]
[347735578,1736087446388,-500.0,8.492e-05,2]
[347735579,1736087446397,-500.0,8.492e-05,2]
[347735581,1736087446407,-500.0,8.492e-05,2]
[347735583,1736087446416,-500.0,8.492e-05,2]
[347735585,1736087446425,-500.0,8.492e-05,2]
[347735586,1736087446434,-545.77,8.492e-05,2]
[347735587,1736087446443,-500.0,8.492e-05,2]
[347735588,1736087446453,-545.27,8.492e-05,2]
[347735589,1736087446462,-500.0,8.492e-05,2]
[347735590,1736087446471,-500.0,8.492e-05,2]
[347735591,1736087446480,-500.0,8.492e-05,2]
[347735592,1736087446491,-792.12,8.492e-05,2]
[347735593,1736087446500,-3029.06,8.492e-05,2]
[347735594,1736087446510,-239.31702162,8.492e-05,2]
[347735595,1736087446520,-269.55199541,8.492e-05,2]
[347735596,1736087446529,-500.0,8.492e-05,2]
[347735597,1736087446539,-1554.62,8.492e-05,2]
[347735598,1736087446548,-844.73,8.492e-05,2]
[347735599,1736087446558,-500.0,8.492e-05,2]
[347735600,1736087446567,-500.0,8.492e-05,2]
[347735601,1736087446577,-500.0,8.493e-05,2]
[347735602,1736087446587,-1642.54,8.493e-05,2]
[347735603,1736087446597,-500.0,8.493e-05,2]
[347735604,1736087446607,-3807.68,8.493e-05,2]
[347735605,1736087446617,-500.0,8.493e-05,2]
[347735606,1736087446626,-500.0,8.493e-05,2]
[347735607,1736087446636,-3354.98,8.493e-05,2]
[347735608,1736087446645,-3354.98,8.493e-05,2]
[347735609,1736087446655,-2557.36,8.493e-05,2]
[347735610,1736087446664,-500.0,8.493e-05,2]
[347735611,1736087446674,-4574.93,8.493e-05,2]
[347735612,1736087446684,-500.0,8.493e-05,2]
[347735613,1736087446694,-692.96,8.493e-05,2]
[347735614,1736087446704,-6708.07,8.493e-05,2]
[347735615,1736087446714,-563.0,8.493e-05,2]
[347735616,1736087446723,-500.0,8.493e-05,2]
[347735617,1736087446733,-4805.9,8.493e-05,2]
[347735618,1736087446743,-7875.64,8.493e-05,2]
[347735619,1736087446753,-500.0,8.493e-05,2]
[347735620,1736087446763,-500.0,8.493e-05,2]
[347735621,1736087446772,-500.0,8.493e-05,2]
[347735622,1736087446782,-500.0,8.493e-05,2]
[347735623,1736087446791,-500.0,8.493e-05,2]
[347735624,1736087446801,-500.0,8.493e-05,2]
[347735625,1736087446810,-231.55265495,8.493e-05,2]
[347735626,1736087446820,-500.0,8.493e-05,2]
[347735627,1736087446829,-576.43,8.493e-05,2]
[347735628,1736087446840,-500.0,8.493e-05,2]
[347735629,1736087446850,-500.0,8.493e-05,2]
[347735630,1736087446859,-613.23,8.493e-05,2]
[347735631,1736087446869,-698.39,8.493e-05,2]
[347735632,1736087446878,-1537.2,8.493e-05,2]
[347735633,1736087446888,-500.0,8.493e-05,2]
[347735634,1736087446898,-500.0,8.493e-05,2]
[347735635,1736087446907,-2922.88,8.493e-05,2]
[347735636,1736087446918,-500.0,8.493e-05,2]
[347735637,1736087446928,-611.39,8.493e-05,2]
[347735638,1736087446939,-500.0,8.493e-05,2]
[347735639,1736087446950,-938.55,8.493e-05,2]
[347735640,1736087446960,-1444.28,8.493e-05,2]
[347735641,1736087446969,-500.0,8.493e-05,2]
[347735642,1736087446979,-500.0,8.493e-05,2]
[347735643,1736087446988,-996.14,8.493e-05,2]
[347735644,1736087446998,-533.69,8.493e-05,2]
[347735645,1736087447007,-500.0,8.493e-05,2]
[347735646,1736087447017,-602.64,8.493e-05,2]
[347735647,1736087447027,-510.46,8.493e-05,2]
[347735648,1736087447035,-5569.43,8.493e-05,2]
[347735649,1736087447046,-758.58,8.493e-05,2]
[347735650,1736087447056,-500.0,8.493e-05,2]
[347735651,1736087447066,-500.0,8.493e-05,2]
[347735652,1736087447076,-500.0,8.493e-05,2]
[347735653,1736087447087,-673.22,8.493e-05,2]
[347735654,1736087447098,-500.0,8.493e-05,2]
[347735655,1736087447108,-1180.17,8.493e-05,2]
[347735656,1736087447118,-500.0,8.493e-05,2]
[347735657,1736087447127,-500.0,8.493e-05,2]
[347735658,1736087447137,-1046.53,8.493e-05,2]
[347735659,1736087447147,-608.8,8.493e-05,2]
[347735660,1736087447157,-500.0,8.493e-05,2]
[347735661,1736087447167,-614.88,8.493e-05,2]
[347735662,1736087447177,-500.0,8.493e-05,2]
[347735663,1736087447188,-1270.54,8.493e-05,2]
[347735664,1736087447198,-646.03,8.493e-05,2]
[347735665,1736087447207,-500.0,8.493e-05,2]
[347735666,1736087447217,-500.0,8.493e-05,2]
[347735667,1736087447227,-500.0,8.493e-05,2]
[347735668,1736087447237,-500.0,8.493e-05,2]
[347735669,1736087447247,-638.28,8.493e-05,2]
[347735670,1736087447257,-1746.53,8.493e-05,2]
[347735671,1736087447267,-500.0,8.493e-05,2]
[347735672,1736087447277,-500.0,8.493e-05,2]
[347735673,1736087447287,-813.03,8.493e-05,2]
[347735674,1736087447298,-636.41,8.493e-05,2]
[347735675,1736087447517,-861.08,8.493e-05,2]
[347735676,1736087447529,-500.0,8.493e-05,2]
[347735677,1736087447539,-691.19,8.493e-05,2]
[347735678,1736087447548,-500.0,8.493e-05,2]
[347735679,1736087447558,-569.3,8.493e-05,2]
[347735680,1736087447568,-3515.39,8.493e-05,2]
[347735681,1736087447578,-1185.52,8.493e-05,2]
[347735682,1736087447588,-1147.13,8.493e-05,2]
[347735683,1736087447599,-500.0,8.493e-05,2]
[347735684,1736087447608,-500.0,8.493e-05,2]
[347735685,1736087447618,-879.06,8.493e-05,2]
[347735686,1736087447628,-1114.61,8.493e-05,2]
[347735687,1736087447638,-818.0,8.493e-05,2]
[347735688,1736087447648,-500.0,8.493e-05,2]
[347735689,1736087447659,-500.0,8.493e-05,2]
[347735690,1736087447668,-1021.84,8.493e-05,2]
[347735691,1736087447678,-500.0,8.493e-05,2]
[347735692,1736087447688,-698.7,8.493e-05,2]
[347735693,1736087447697,-500.0,8.493e-05,2]
[347735694,1736087447707,-624.66,8.493e-05,2]
[347735695,1736087447717,-500.0,8.493e-05,2]
[347735696,1736087447727,-738.42,8.493e-05,2]
[347735697,1736087447737,-500.0,8.493e-05,2]
[347735698,1736087447747,-605.13,8.493e-05,2]
[347735699,1736087447757,-502.34,8.493e-05,2]
[347735700,1736087447767,-1424.29,8.493e-05,2]
[347735701,1736087447776,-1100.5,8.493e-05,2]
[347735702,1736087447786,-500.0,8.493e-05,2]
[347735703,1736087447796,-645.23,8.493e-05,2]
[347735704,1736087447806,-500.0,8.493e-05,2]
[347735705,1736087447815,-528.75,8.493e-05,2]
[347735706,1736087447825,-906.79,8.493e-05,2]
[347735707,1736087447834,-728.95,8.493e-05,2]
[347735708,1736087447845,-691.64,8.493e-05,2]
[347735709,1736087447855,-589.99,8.493e-05,2]
[347735710,1736087447864,-500.0,8.493e-05,2]
[347735711,1736087447874,-1480.26,8.493e-05,2]
[347735712,1736087447885,-500.0,8.493e-05,2]
[347735713,1736087447894,-1775.43,8.493e-05,2]
[347735714,1736087447903,-743.22,8.493e-05,2]
[347735715,1736087447913,-500.0,8.493e-05,2]
[347735716,1736087447923,-781.44,8.493e-05,2]
[347735717,1736087447933,-699.6,8.493e-05,2]
[347735718,1736087447945,-500.0,8.493e-05,2]
[347735719,1736087447955,-968.92,8.493e-05,2]
[347735720,1736087447965,-500.0,8.493e-05,2]
[347735721,1736087447974,-616.91,8.493e-05,2]
[347735722,1736087447984,-1140.5,8.493e-05,2]
[347735723,1736087447993,-514.64,8.493e-05,2]
[347735724,1736087448003,-524.1,8.493e-05,2]
[347735725,1736087448012,-918.55,8.493e-05,2]
[347735726,1736087448023,-702.75,8.493e-05,2]
[347735727,1736087448034,-500.0,8.493e-05,2]
[347735728,1736087448044,-1033.65,8.493e-05,2]
[347735729,1736087448054,-2079.48,8.493e-05,2]
[347735732,1736087448063,-995.5,8.493e-05,2]
[347735734,1736087448073,-1082.324567,8.493e-05,2]
[347735736,1736087448083,-500.0,8.493e-05,2]
[347735737,1736087448093,-500.0,8.493e-05,2]
[347735739,1736087448103,-1050.75,8.493e-05,2]
[347735741,1736087448113,-2288.37,8.493e-05,2]
[347735742,1736087448123,-500.0,8.493e-05,2]
[347735743,1736087448133,-731.7,8.493e-05,2]
[347735744,1736087448143,-624.19,8.493e-05,2]
[347735745,1736087448153,-500.0,8.493e-05,2]
[347735746,1736087448164,-1187.11,8.493e-05,2]
[347735747,1736087448174,-757.3,8.493e-05,2]
[347735749,1736087448183,-500.0,8.493e-05,2]
[347735751,1736087448193,-398.5,8.493e-05,2]
[347735753,1736087448203,-621.88,8.493e-05,2]
[347735755,1736087448212,-1098.17,8.493e-05,2]
[347735757,1736087448222,-726.88,8.493e-05,2]
[347735758,1736087448231,-1226.741349,8.493e-05,2]
[347735759,1736087448241,-189.44,8.493e-05,2]
[347735760,1736087448250,-500.0,8.493e-05,2]
[347735761,1736087448260,-1252.46,8.493e-05,2]
[347735762,1736087448269,-500.0,8.493e-05,2]
[347735763,1736087448279,-500.0,8.493e-05,2]
[347735764,1736087448289,-1865.96,8.493e-05,2]
[347735765,1736087448298,-500.0,8.493e-05,2]
[347735766,1736087448308,-500.0,8.493e-05,2]
[347735767,1736087448317,-678.98,8.493e-05,2]
[347735768,1736087448327,-773.79,8.493e-05,2]
[347735769,1736087448340,-500.0,8.493e-05,2]
[347735770,1736087448353,-536.82,8.493e-05,2]
[347735771,1736087448362,-547.99,8.493e-05,2]
[347735772,1736087448372,-3163.81,8.493e-05,2]
[347735773,1736087448382,-155.906236,8.493e-05,2]
[347735774,1736087448392,-2381.79,8.493e-05,2]
[347735775,1736087448402,-500.0,8.493e-05,2]
[347735776,1736087448412,-640.07,8.493e-05,2]
[347735777,1736087448422,-626.77,8.493e-05,2]
[347735778,1736087448431,-1289.71,8.493e-05,2]
[347735779,1736087448441,-500.0,8.493e-05,2]
[347735780,1736087448450,-500.0,8.493e-05,2]
[347735781,1736087448460,-500.0,8.493e-05,2]
[347735782,1736087448470,-500.0,8.493e-05,2]
[347735783,1736087448479,-1260.65,8.493e-05,2]
[347735784,1736087448489,-723.31,8.493e-05,2]
[347735785,1736087448498,-500.0,8.493e-05,2]
[347735786,1736087448509,-760.01,8.493e-05,2]
[347735787,1736087448518,-734.13,8.493e-05,2]
[347735788,1736087448528,-1428.45,8.493e-05,2]
[347735789,1736087448538,-2038.47,8.493e-05,2]
[347735790,1736087448548,-500.0,8.493e-05,2]
[347735791,1736087448558,-824.53,8.493e-05,2]
[347735792,1736087448568,-500.0,8.493e-05,2]
[347735793,1736087448578,-1178.06,8.493e-05,2]
[347735794,1736087448588,-500.0,8.493e-05,2]
[347735795,1736087448604,-665.54,8.493e-05,2]
[347735796,1736087448615,-841.67,8.493e-05,2]
[347735797,1736087448625,-500.0,8.493e-05,2]
[347735798,1736087448635,-567.9,8.493e-05,2]
[347735799,1736087448645,-501.11,8.493e-05,2]
[347735800,1736087448655,-743.28,8.493e-05,2]
[347735801,1736087448666,-629.72,8.493e-05,2]
[347735802,1736087448677,-1735.99,8.493e-05,2]
[347735803,1736087448687,-1632.07,8.493e-05,2]
[347735804,1736087448697,-1243.34,8.493e-05,2]
[347735805,1736087448706,-500.0,8.493e-05,2]
[347735806,1736087448717,-863.18,8.493e-05,2]
[347735807,1736087448727,-740.77,8.493e-05,2]
[347735808,1736087448737,-652.36,8.493e-05,2]
[347735809,1736087448746,-982.16,8.493e-05,2]
[347735810,1736087448756,-500.0,8.493e-05,2]
[347735811,1736087448766,-500.0,8.493e-05,2]
[347735812,1736087448776,-926.05,8.493e-05,2]
[347735813,1736087448785,-1594.81,8.493e-05,2]
[347735814,1736087448794,-676.75,8.493e-05,2]
[347735815,1736087448804,-1315.68,8.493e-05,2]
[347735816,1736087448815,-677.8,8.493e-05,2]
[347735817,1736087448824,-2577.87,8.493e-05,2]
[347735818,1736087448834,-500.0,8.493e-05,2]
[347735819,1736087448845,-1785.83,8.493e-05,2]
[347735820,1736087448855,-749.64,8.493e-05,2]
[347735821,1736087448865,-1591.99,8.493e-05,2]
[347735822,1736087448875,-665.75,8.493e-05,2]
[347735823,1736087448886,-500.0,8.493e-05,2]
[347735824,1736087448896,-697.79,8.493e-05,2]
[347735825,1736087448906,-188.76742151,8.493e-05,2]
[347735826,1736087448916,-1315.89,8.493e-05,2]
[347735827,1736087448926,-500.0,8.493e-05,2]
[347735828,1736087448937,-1730.96,8.493e-05,2]
[347735829,1736087448949,-500.0,8.493e-05,2]
[347735830,1736087448959,-1071.44,8.493e-05,2]
[347735831,1736087448969,-500.0,8.493e-05,2]
[347735832,1736087448979,-1369.17,8.493e-05,2]
[347735833,1736087448990,-500.0,8.493e-05,2]
[347735834,1736087449000,-1027.49,8.493e-05,2]
[347735835,1736087449010,-780.04,8.493e-05,2]
[347735836,1736087449021,-500.0,8.493e-05,2]
[347735837,1736087449032,-500.0,8.493e-05,2]
[347735838,1736087449042,-500.0,8.493e-05,2]
[347735839,1736087449052,-714.9,8.493e-05,2]
[347735840,1736087449062,-500.0,8.493e-05,2]
[347735841,1736087449072,-761.44,8.493e-05,2]
[347735842,1736087449082,-654.93,8.493e-05,2]